bitfinex-derivatives/quotes_BTCF0:USTF0_20210109
["timestamp","ask_amount","ask_price","bid_price","bid_amount"]
[1610152848931,0.12553,40541.0,40503.0,0.13632608]
[1610152849132,4.1228,40519.0,40503.0,0.13632608]
[1610152849432,4.20466,40519.0,40503.0,0.13632608]
[1610152850734,0.08186,40519.0,40503.0,0.13632608]
[1610152852735,3.1122,40514.0,40503.0,0.13632608]
[1610152857141,0.08186,40519.0,40503.0,0.13632608]
[1610152857341,3.2543,40533.0,40503.0,0.13632608]
[1610152857543,0.1569,40538.0,40503.0,0.13632608]
[1610152862845,0.4684,40570.0,40503.0,0.13632608]
[1610152862846,0.4684,40570.0,40512.0,3.3758]
[1610152863046,0.4684,40570.0,40512.0,3.4604]
[1610152864446,3.2468,40547.0,40512.0,0.0846]
[1610152864647,0.1569,40546.0,40512.0,0.0846]
[1610152864847,2.9049,40523.0,40508.0,0.0199]
[1610152865248,2.98704,40523.0,40508.0,0.0199]
[1610152865847,0.08214,40523.0,40508.0,0.0199]
[1610152870353,3.5027,40544.0,40508.0,0.0199]
[1610152870553,0.12593,40523.0,40508.0,0.0199]
[1610152872855,0.47987251,40523.0,40508.0,0.0199]
[1610152873056,3.4027,40509.0,40508.0,0.0199]
[1610152873260,3.52294,40509.0,40508.0,0.0199]
[1610152877160,3.94818352,40509.0,40508.0,0.0199]
[1610152877659,4.7906167,40509.0,40508.0,0.0199]
[1610152877861,4.7906167,40509.0,40508.0,0.01838978]
[1610152878060,5.39364656,40509.0,40508.0,0.01838978]
[1610152879662,4.7906167,40509.0,40508.0,0.01838978]
[1610152881667,5.93625759,40509.0,40503.0,0.13632608]
[1610152882167,2.18441022,40504.0,40503.0,0.13632608]
[1610152883066,2.18441022,40504.0,40454.0,3.6319]
[1610152883267,2.18441022,40504.0,40442.0,0.0947]
[1610152883466,3.8365,40482.0,40442.0,0.0947]
[1610152883667,0.13632608,40443.0,40442.0,0.0947]
[1610152884867,0.13632608,40443.0,40420.0,0.13632608]
[1610152885567,4.0959,40444.0,40409.0,0.2832]
[1610152885767,4.0959,40444.0,40409.0,0.39104]
[1610152886067,4.0959,40444.0,40420.0,0.13632608]
[1610152886269,4.0959,40444.0,40420.0,0.25870608]
[1610152888169,4.0959,40444.0,40420.0,0.12238]
[1610152888372,0.11976,40455.0,40420.0,0.12238]
[1610152888769,0.13632608,40421.0,40420.0,0.25870608]
[1610152890670,3.3214,40430.0,40420.0,0.12238]
[1610152890870,3.3214,40430.0,40409.0,0.10784]
[1610152891071,0.08341,40431.0,40384.0,1.5]
[1610152891269,0.08341,40431.0,40420.0,0.13632608]
[1610152891574,0.08341,40431.0,40420.0,0.24733608]
[1610152891770,0.11976,40455.0,40420.0,0.24733608]
[1610152891971,0.2749,40465.0,40420.0,0.24733608]
[1610152893271,0.2749,40465.0,40420.0,0.11101]
[1610152893771,0.13632608,40422.0,40421.0,0.13632608]
[1610152898677,0.4986847,40422.0,40421.0,0.13632608]
[1610152899578,0.4986847,40422.0,40393.0,3.251]
[1610152899781,0.36235862,40422.0,40412.0,0.13632608]
[1610152900280,0.36235862,40422.0,40409.0,0.08869]
[1610152901882,0.13632608,40410.0,40409.0,0.22501608]
[1610152902581,0.13632608,40410.0,40409.0,0.08869]
[1610152905086,0.13632608,40410.0,40393.0,3.251]
[1610152905785,0.13632608,40394.0,40393.0,3.251]
[1610152906286,0.13632608,40394.0,40389.0,0.13632608]
[1610152906886,0.13632608,40394.0,40384.0,0.08241]
[1610152907087,0.13632608,40394.0,40369.0,3.9192]
[1610152907791,0.2742,40419.0,40385.0,0.13632608]
[1610152907989,0.2742,40419.0,40385.0,0.25350608]
[1610152908893,0.2742,40419.0,40390.0,2.8817]
[1610152909090,0.08669,40420.0,40390.0,2.8817]
[1610152909290,0.36235862,40422.0,40390.0,2.8817]
[1610152909489,0.36235862,40422.0,40390.0,4.3817]
[1610152909789,0.36235862,40422.0,40420.0,0.13632608]
[1610152911789,0.13632608,40421.0,40420.0,0.13632608]
[1610152912991,0.13632608,40421.0,40418.0,0.08759]
[1610152913891,0.13632608,40421.0,40399.0,4.13]
[1610152914892,0.23846608,40421.0,40399.0,4.13]
[1610152915892,0.13632608,40400.0,40399.0,4.13]
[1610152919400,0.13632608,40400.0,40395.0,0.13632608]
[1610152919699,0.13632608,40400.0,40382.0,3.2571]
[1610152919999,0.13632608,40386.0,40383.0,0.13632608]
[1610152922601,0.36235862,40422.0,40383.0,0.13632608]
[1610152922903,0.36235862,40422.0,40383.0,0.25642608]
[1610152923804,0.36235862,40422.0,40410.0,0.13632608]
[1610152925506,0.36235862,40422.0,40409.0,0.12185]
[1610152925904,0.13632608,40410.0,40409.0,0.12185]
[1610152927107,0.13632608,40410.0,40409.0,0.06185]
[1610152929309,0.13632608,40410.0,40402.0,3.6141]
[1610152929711,0.36235862,40422.0,40402.0,3.6141]
[1610152929912,0.13632608,40412.0,40409.0,0.13632608]
[1610152930712,0.13632608,40412.0,40402.0,3.6141]
[1610152931912,0.13632608,40412.0,40411.0,0.13632608]
[1610152932212,0.13632608,40412.0,40411.0,0.21455608]
[1610152933318,0.13632608,40412.0,40411.0,0.07823]
[1610152937514,0.13632608,40412.0,40406.0,0.08137]
[1610152937914,0.13632608,40407.0,40406.0,0.08137]
[1610152939314,0.13632608,40407.0,40402.0,3.6141]
[1610152939514,0.09875,40413.0,40402.0,3.6141]
[1610152939914,0.09875,40413.0,40411.0,0.13632608]
[1610152941315,0.36235862,40422.0,40411.0,0.13632608]
[1610152942016,0.13632608,40413.0,40411.0,0.13632608]
[1610152942516,0.36235862,40422.0,40411.0,0.13632608]
[1610152943319,0.36235862,40422.0,40421.0,3.7299]
[1610152943524,0.36235862,40422.0,40421.0,5.33259]
[1610152943919,0.36235862,40422.0,40421.0,5.46891608]
[1610152944420,0.36235862,40422.0,40421.0,3.96891608]
[1610152944620,0.36235862,40422.0,40421.0,5.46891608]
[1610152945520,0.36235862,40422.0,40421.0,3.96891608]
[1610152948322,0.36235862,40422.0,40421.0,0.23901608]
[1610152948524,0.36235862,40422.0,40421.0,0.10269]
[1610152948723,0.36235862,40422.0,40410.0,2.54841253]
[1610152949123,0.36235862,40422.0,40404.0,0.11205]
[1610152949423,0.36235862,40422.0,40394.0,2.69859592]
[1610152949424,0.36235862,40422.0,40394.0,2.549478]
[1610152949823,0.36235862,40422.0,40388.0,1.5]
[1610152949824,0.36235862,40422.0,40391.0,2.54963958]
[1610152950023,0.13632608,40408.0,40407.0,0.13632608]
[1610152950423,0.13632608,40408.0,40397.0,1.5]
[1610152951125,0.36235862,40422.0,40397.0,1.5]
[1610152951823,0.36235862,40422.0,40400.0,2.5491119]
[1610152952022,0.36235862,40422.0,40421.0,0.13632608]
[1610152952224,0.36235862,40422.0,40421.0,0.22764608]
[1610152953927,0.4986847,40422.0,40421.0,0.09132]
[1610152954928,0.36235862,40422.0,40421.0,0.09132]
[1610152956030,0.36235862,40422.0,40421.0,0.22764608]
[1610152956031,0.4986847,40422.0,40421.0,0.22764608]
[1610152957029,0.4986847,40422.0,40421.0,0.09132]
[1610152957229,0.36235862,40422.0,40421.0,0.09132]
[1610152957429,0.36235862,40422.0,40421.0,0.11371]
[1610152958029,0.4986847,40422.0,40421.0,0.11371]
[1610152961936,0.4986847,40422.0,40392.0,0.10213]
[1610152961937,0.36235862,40422.0,40408.0,0.12494]
[1610152962433,0.13632608,40409.0,40408.0,0.12494]
[1610152964334,0.36235862,40422.0,40408.0,0.12494]
[1610152964537,0.13632608,40414.0,40408.0,0.12494]
[1610152966236,0.4522,40412.0,40408.0,0.12494]
[1610152966437,3.41842608,40409.0,40408.0,0.12494]
[1610152966639,3.41842608,40409.0,40392.0,0.10213]
[1610152966841,1.5,40408.0,40369.0,2.55131837]
[1610152967141,3.3028,40384.0,40357.0,2.5528347]
[1610152967339,1.5,40404.0,40357.0,2.5528347]
[1610152967540,3.3293,40358.0,40357.0,0.11901]
[1610152967737,1.5,40385.0,40357.0,0.11901]
[1610152968138,0.11366,40395.0,40357.0,0.11901]
[1610152968338,1.5,40394.0,40357.0,0.11901]
[1610152968639,0.13632608,40358.0,40357.0,0.11901]
[1610152968839,0.20942608,40358.0,40317.0,2.54626558]
[1610152969152,0.0731,40358.0,40307.0,2.54711808]
[1610152969341,0.0731,40358.0,40297.0,2.3911622]
[1610152969342,2.9755,40349.0,40297.0,2.3911622]
[1610152969941,2.9755,40349.0,40287.0,3.6492]
[1610152970544,0.13632608,40293.0,40287.0,3.6492]
[1610152971246,0.13632608,40293.0,40271.0,0.13632608]
[1610152971443,3.8337,40323.0,40271.0,0.13632608]
[1610152971644,3.8337,40323.0,40271.0,0.21588608]
[1610152972545,3.8337,40323.0,40295.0,0.13632608]
[1610152972744,3.8337,40323.0,40295.0,0.11583]
[1610152973746,0.08273,40349.0,40295.0,0.11583]
[1610152974646,0.08273,40349.0,40299.0,0.13632608]
[1610152975145,0.08273,40349.0,40299.0,0.70372608]
[1610152975346,0.08273,40349.0,40299.0,0.13632608]
[1610152975545,0.11969,40358.0,40299.0,0.13632608]
[1610152975747,0.48651612,40374.0,40311.0,3.5493]
[1610152976046,0.48651612,40374.0,40311.0,3.67206]
[1610152976247,0.08345,40374.0,40312.0,1.5]
[1610152976447,0.01312651,40375.0,40337.0,0.13632608]
[1610152976647,0.2721,40385.0,40337.0,0.08582]
[1610152977551,0.11366,40395.0,40341.0,4.0582]
[1610152977749,0.40400286,40396.0,40341.0,4.0582]
[1610152977948,0.65132762,40406.0,40341.0,4.0582]
[1610152977949,0.01316861,40400.0,40341.0,4.0582]
[1610152978148,4.0817,40399.0,40337.0,0.08582]
[1610152978351,0.0738,40398.0,40337.0,0.08582]
[1610152978550,0.13632608,40338.0,40337.0,0.08582]
[1610152980553,0.13632608,40338.0,40311.0,0.12276]
[1610152980954,0.11578,40346.0,40299.0,3.8151]
[1610152981454,0.18978,40346.0,40299.0,3.8151]
[1610152981653,0.11578,40346.0,40299.0,3.8151]
[1610152982657,0.13632608,40300.0,40299.0,3.8151]
[1610152982854,0.13632608,40300.0,40295.0,0.11583]
[1610152983058,0.13632608,40300.0,40284.0,3.1124]
[1610152983654,0.13632608,40300.0,40279.0,0.13632608]
[1610152984654,0.13632608,40284.0,40279.0,0.13632608]
[1610152984858,0.13632608,40284.0,40269.0,3.8278]
[1610152985154,0.13632608,40284.0,40240.0,3.4269]
[1610152985356,0.13632608,40284.0,40234.0,1.5]
[1610152985655,0.11792608,40284.0,40234.0,1.5]
[1610152986356,0.11792608,40284.0,40232.0,3.181]
[1610152986557,0.13632608,40268.0,40265.0,0.13632608]
[1610152986757,3.3653,40316.0,40265.0,0.13632608]
[1610152987158,3.3653,40316.0,40265.0,0.23293608]
[1610152987360,0.09744,40331.0,40265.0,0.23293608]
[1610152988558,0.09744,40331.0,40288.0,0.13632608]
[1610152988759,0.09744,40331.0,40288.0,0.26243608]
[1610152988960,0.09744,40331.0,40288.0,0.71743608]
[1610152989363,0.09256,40355.0,40288.0,0.26243608]
[1610152989561,0.09256,40355.0,40301.0,4.0078]
[1610152989763,0.2986,40386.0,40301.0,4.1204]
[1610152990663,0.13632608,40333.0,40332.0,0.13632608]
[1610152991062,0.13632608,40333.0,40301.0,4.1204]
[1610152991962,0.13632608,40333.0,40301.0,5.6204]
[1610152992661,0.13632608,40333.0,40329.0,0.13632608]
[1610152992862,0.13632608,40333.0,40329.0,0.24701608]
[1610152993763,0.12577,40367.0,40329.0,0.24701608]
[1610152993964,0.12577,40367.0,40333.0,3.5591]
[1610152994664,0.12577,40367.0,40353.0,0.13632608]
[1610152995266,0.12577,40367.0,40344.0,0.08417]
[1610152995867,0.2986,40386.0,40344.0,0.08417]
[1610152996068,0.2986,40386.0,40334.0,0.09266]
[1610152996568,0.13632608,40335.0,40334.0,0.09266]
[1610152998569,0.13632608,40344.0,40334.0,0.09266]
[1610153000573,0.38579,40386.0,40340.0,0.13632608]
[1610153002675,0.38579,40386.0,40338.0,3.6509]
[1610153002676,0.13632608,40358.0,40355.0,0.13632608]
[1610153004175,0.10456,40368.0,40355.0,0.13632608]
[1610153004576,0.10456,40368.0,40362.0,0.13632608]
[1610153005379,0.10456,40368.0,40344.0,0.09031]
[1610153006577,0.13632608,40349.0,40344.0,0.09031]
[1610153007177,0.10456,40368.0,40344.0,0.09031]
[1610153007781,0.08719,40386.0,40344.0,0.09031]
[1610153007979,0.1569,40417.0,40344.0,0.09031]
[1610153008780,0.13632608,40374.0,40368.0,0.13632608]
[1610153008979,0.13632608,40374.0,40358.0,3.6455]
[1610153009178,0.23409608,40374.0,40358.0,3.6455]
[1610153010581,0.13632608,40367.0,40364.0,0.13632608]
[1610153010981,0.09777,40374.0,40364.0,0.13632608]
[1610153011582,0.09777,40374.0,40358.0,3.6455]
[1610153012584,0.13632608,40359.0,40358.0,3.6455]
[1610153014688,0.13632608,40359.0,40358.0,3.78182608]
[1610153015789,0.13632608,40359.0,40358.0,3.6455]
[1610153015988,0.13632608,40359.0,40344.0,0.09031]
[1610153016189,0.13632608,40359.0,40334.0,0.09266]
[1610153016391,0.13632608,40359.0,40329.0,3.0753]
[1610153016889,0.13632608,40331.0,40330.0,0.13632608]
[1610153017693,0.13632608,40331.0,40308.0,3.903]
[1610153018095,0.09016,40356.0,40308.0,5.403]
[1610153018692,0.13632608,40342.0,40330.0,0.13632608]
[1610153019093,0.13632608,40342.0,40308.0,5.403]
[1610153019491,0.13632608,40342.0,40308.0,3.903]
[1610153019996,0.13632608,40342.0,40309.0,1.5]
[1610153020693,0.11334,40345.0,40339.0,0.13632608]
[1610153021194,0.09016,40356.0,40339.0,1.63632608]
[1610153022097,0.07716,40365.0,40339.0,1.63632608]
[1610153022298,3.4421,40401.0,40339.0,1.63632608]
[1610153022698,3.4421,40401.0,40369.0,0.13632608]
[1610153022902,3.4421,40401.0,40345.0,0.11095]
[1610153023097,0.4894445,40386.0,40345.0,0.11095]
[1610153024699,0.13632608,40354.0,40352.0,0.13632608]
[1610153025097,0.13632608,40354.0,40345.0,0.11095]
[1610153025698,0.13632608,40354.0,40336.0,0.08452]
[1610153026298,0.13632608,40354.0,40325.0,0.12485]
[1610153026498,0.13632608,40354.0,40316.0,3.564]
[1610153026701,0.08876,40363.0,40339.0,0.13632608]
[1610153026898,0.08876,40363.0,40332.0,0.10361]
[1610153027898,0.08876,40363.0,40316.0,3.564]
[1610153029900,0.28,40376.0,40316.0,3.564]
[1610153030099,0.08622,40363.0,40316.0,3.65938]
[1610153030301,0.08622,40363.0,40316.0,0.09538]
[1610153030501,3.054,40356.0,40316.0,0.09538]
[1610153030802,0.13632608,40317.0,40316.0,0.09538]
[1610153032902,0.13632608,40317.0,40301.0,0.1126]
[1610153033102,0.13632608,40317.0,40300.0,0.25]
[1610153034403,2.8531,40315.0,40300.0,0.25]
[1610153034703,0.13632608,40301.0,40300.0,0.25]
[1610153035504,0.22864608,40301.0,40300.0,0.25]
[1610153035704,0.66974608,40301.0,40300.0,0.25]
[1610153037507,0.22864608,40301.0,40300.0,0.25]
[1610153038306,0.13632608,40301.0,40300.0,0.25]
[1610153039107,0.26333608,40301.0,40300.0,0.25]
[1610153040808,4.17703608,40301.0,40300.0,0.25]
[1610153041409,4.17703608,40301.0,40238.0,0.1177]
[1610153042011,0.26333608,40301.0,40238.0,0.1177]
[1610153042310,3.3989,40269.0,40238.0,0.1177]
[1610153042511,3.52565,40269.0,40238.0,0.1177]
[1610153043212,0.13632608,40239.0,40203.0,0.01]
[1610153043413,3.8874,40231.0,40203.0,0.01]
[1610153044013,0.09132,40233.0,40203.0,0.01]
[1610153044513,3.3643,40204.0,40203.0,0.01]
[1610153045114,3.50062608,40204.0,40203.0,0.01]
[1610153045513,0.13632608,40204.0,40203.0,0.01]
[1610153046414,0.10528,40218.0,40203.0,0.01]
[1610153047016,0.13632608,40204.0,40203.0,0.01]
[1610153047819,2.8486,40239.0,40203.0,0.01]
[1610153048120,0.2734,40264.0,40203.0,0.01]
[1610153049118,0.13632608,40204.0,40203.0,0.01]
[1610153050721,3.09972608,40204.0,40203.0,0.01]
[1610153052321,0.13632608,40204.0,40203.0,0.01]
[1610153053923,0.11468,40212.0,40203.0,0.01]
[1610153055026,0.09761,40221.0,40203.0,0.01]
[1610153055027,0.13632608,40204.0,40203.0,0.01]
[1610153057227,3.0428,40246.0,40203.0,0.01]
[1610153057427,0.2769,40266.0,40203.0,0.11122]
[1610153059128,0.13632608,40209.0,40203.0,0.11122]
[1610153059927,4.1682,40248.0,40203.0,0.11122]
[1610153060328,0.10984,40252.0,40203.0,0.11122]
[1610153061230,0.13632608,40238.0,40226.0,0.13632608]
[1610153061731,0.13632608,40238.0,40203.0,0.11122]
[1610153063231,0.13632608,40223.0,40212.0,0.13632608]
[1610153063431,3.1335,40254.0,40212.0,0.13632608]
[1610153063631,3.1335,40254.0,40212.0,0.24115608]
[1610153064531,3.1335,40254.0,40212.0,0.10483]
[1610153065132,0.13632608,40223.0,40214.0,0.13632608]
[1610153065334,3.1335,40254.0,40214.0,0.13632608]
[1610153065735,3.1335,40254.0,40212.0,0.10483]
[1610153066438,0.09214,40264.0,40212.0,0.10483]
[1610153067138,0.13632608,40222.0,40221.0,0.13632608]
[1610153067337,0.13632608,40222.0,40212.0,0.10483]
[1610153068539,0.13632608,40222.0,40203.0,0.11122]
[1610153069240,0.09214,40264.0,40203.0,0.11122]
[1610153069241,0.13632608,40204.0,40203.0,0.11122]
[1610153070843,0.08392,40241.0,40203.0,0.11122]
[1610153071142,0.12478,40252.0,40221.0,0.13632608]
[1610153071342,0.12478,40252.0,40221.0,0.08747]
[1610153071843,0.09214,40264.0,40221.0,0.08747]
[1610153072045,0.2884,40272.0,40221.0,0.08747]
[1610153072546,0.0735,40281.0,40221.0,0.08747]
[1610153072847,3.4335,40253.0,40203.0,0.11122]
[1610153073051,3.53061,40253.0,40203.0,0.11122]
[1610153073247,0.13632608,40204.0,40203.0,0.11122]
[1610153073447,0.13632608,40204.0,40203.0,0.01]
[1610153073647,0.12446,40205.0,40203.0,0.01]
[1610153075250,0.13632608,40204.0,40203.0,0.01]
[1610153078955,0.13632608,40204.0,40200.0,0.35]
[1610153080559,0.12446,40205.0,40200.0,0.35]
[1610153080756,4.0808,40211.0,40200.0,0.35]
[1610153081256,0.13632608,40201.0,40200.0,0.35]
[1610153088464,1.0,40204.0,40200.0,0.35]
[1610153088665,1.0,40204.0,40200.0,0.46074]
[1610153089268,0.13632608,40201.0,40200.0,0.46074]
[1610153091669,0.23697608,40201.0,40200.0,0.35]
[1610153095373,0.10065,40201.0,40200.0,0.35]
[1610153095773,1.0,40204.0,40200.0,0.35]
[1610153095974,1.0,40204.0,40200.0,0.48632608]
[1610153096274,1.0,40204.0,40200.0,0.59111608]
[1610153096473,1.0,40204.0,40200.0,2.09111608]
[1610153096674,0.773,40204.0,40200.0,2.09111608]
[1610153097375,0.46912096,40204.0,40200.0,2.09111608]
[1610153097778,0.46912096,40204.0,40201.0,1.5]
[1610153098078,0.26992096,40204.0,40200.0,0.59111608]
[1610153100078,0.13632608,40201.0,40200.0,0.45479]
[1610153100780,0.26992096,40204.0,40200.0,0.45479]
[1610153101881,0.26992096,40204.0,40203.0,0.13632608]
[1610153102680,0.26992096,40204.0,40200.0,0.45479]
[1610153103183,0.26992096,40204.0,40201.0,1.5]
[1610153103385,0.1569,40268.0,40201.0,1.5]
[1610153103984,0.1569,40268.0,40231.0,0.13632608]
[1610153104386,1.2151131,40316.0,40231.0,0.13632608]
[1610153104387,0.02006505,40288.0,40231.0,0.13632608]
[1610153104686,0.00673246,40289.0,40231.0,0.13632608]
[1610153105087,0.0133329,40290.0,40231.0,0.13632608]
[1610153105287,0.00673798,40292.0,40231.0,0.13632608]
[1610153105487,0.1569,40293.0,40231.0,0.13632608]
[1610153105890,0.1569,40293.0,40246.0,0.13632608]
[1610153107089,0.0067501,40297.0,40246.0,0.13632608]
[1610153107293,0.0067724,40307.0,40246.0,1.63632608]
[1610153107691,0.2925,40311.0,40246.0,1.63632608]
[1610153107889,0.2925,40311.0,40279.0,0.13632608]
[1610153108292,0.00679257,40317.0,40279.0,0.13632608]
[1610153108695,0.0067923,40320.0,40279.0,0.13632608]
[1610153109091,0.0067993,40324.0,40279.0,0.13632608]
[1610153109592,0.2831,40327.0,40279.0,0.13632608]
[1610153109992,0.13632608,40280.0,40279.0,0.13632608]
[1610153110392,0.13632608,40280.0,40277.0,0.11038]
[1610153111494,0.12654,40313.0,40277.0,0.11038]
[1610153112093,0.12654,40313.0,40298.0,0.13632608]
[1610153112796,0.2866,40339.0,40296.0,0.09433]
[1610153113195,0.09208,40326.0,40296.0,0.09433]
[1610153113996,0.13632608,40315.0,40299.0,0.13632608]
[1610153114395,0.13632608,40315.0,40296.0,0.09433]
[1610153115896,0.13632608,40310.0,40299.0,0.13632608]
[1610153116796,0.09208,40326.0,40299.0,0.13632608]
[1610153117398,0.2955,40358.0,40299.0,0.13632608]
[1610153117896,0.13632608,40328.0,40324.0,0.13632608]
[1610153119699,0.13632608,40328.0,40305.0,3.4836]
[1610153119899,0.11817,40334.0,40309.0,0.13632608]
[1610153120098,0.11817,40334.0,40306.0,0.11083]
[1610153120298,0.11817,40334.0,40305.0,3.4836]
[1610153121302,0.11817,40334.0,40296.0,0.09433]
[1610153121600,0.11817,40334.0,40291.0,0.2781]
[1610153121799,0.11817,40334.0,40264.0,4.0794]
[1610153122600,0.2718,40333.0,40264.0,4.0794]
[1610153123200,0.2718,40333.0,40245.0,0.2779]
[1610153123402,3.8459,40308.0,40245.0,0.2779]
[1610153123601,3.95872,40308.0,40220.0,3.4644]
[1610153123802,0.1569,40307.0,40221.0,0.294]
[1610153124000,0.13632608,40232.0,40227.0,0.13632608]
[1610153124301,0.12628,40260.0,40227.0,0.13632608]
[1610153124600,0.12628,40260.0,40227.0,0.25942608]
[1610153125901,0.13632608,40230.0,40227.0,0.25942608]
[1610153127904,0.13632608,40230.0,40227.0,0.1231]
[1610153129004,0.13632608,40230.0,40200.0,0.35]
[1610153129606,3.0865,40225.0,40200.0,0.35]
[1610153129805,3.17994,40225.0,40200.0,0.35]
[1610153130102,0.13632608,40201.0,40200.0,0.35]
[1610153130303,0.23090608,40201.0,40200.0,0.35]
[1610153130603,0.09458,40201.0,40200.0,0.35]
[1610153131205,0.16868,40201.0,40200.0,0.35]
[1610153131805,0.09458,40201.0,40200.0,0.35]
[1610153132005,0.23090608,40201.0,40200.0,0.35]
[1610153134111,0.13632608,40201.0,40200.0,0.35]
[1610153135109,0.22187608,40201.0,40200.0,0.35]
[1610153135811,0.22187608,40201.0,40200.0,0.38]
[1610153138714,0.13632608,40201.0,40200.0,0.38]
[1610153142222,0.24843608,40201.0,40200.0,0.38]
[1610153144122,0.13632608,40201.0,40200.0,0.38]
[1610153146326,0.09706608,40215.0,40200.0,0.38]
[1610153146527,0.0804,40201.0,40200.0,0.38]
[1610153148028,0.21672608,40201.0,40200.0,0.38]
[1610153154036,0.21672608,40201.0,40200.0,0.37847806]
[1610153157040,0.0804,40201.0,40200.0,0.37847806]
[1610153157238,0.09706608,40215.0,40200.0,0.37847806]
[1610153157538,0.0843,40225.0,40200.0,0.37847806]
[1610153157740,0.08769,40238.0,40200.0,0.37847806]
[1610153157940,2.9837,40255.0,40200.0,0.37847806]
[1610153158238,0.13632608,40201.0,40200.0,0.37847806]
[1610153164745,0.10702,40221.0,40200.0,0.37847806]
[1610153165042,0.1569,40242.0,40200.0,0.46451806]
[1610153165243,0.2997,40241.0,40200.0,0.46451806]
[1610153165442,0.38197,40241.0,40200.0,0.46451806]
[1610153165843,0.5764,40240.0,40200.0,0.46451806]
[1610153166046,0.13632608,40201.0,40200.0,0.46451806]
[1610153166446,0.64832608,40201.0,40200.0,0.46451806]
[1610153166647,0.64832608,40201.0,40200.0,0.37847806]
[1610153166648,0.72531608,40201.0,40200.0,0.37847806]
[1610153167952,0.58899,40201.0,40200.0,0.37847806]
[1610153168352,0.72531608,40201.0,40200.0,0.37847806]
[1610153175056,0.71531608,40201.0,40200.0,0.37847806]
[1610153175758,0.21331608,40201.0,40200.0,0.37847806]
[1610153175969,0.13632608,40201.0,40200.0,0.37847806]
[1610153176357,0.13632608,40201.0,40200.0,0.51480414]
[1610153176557,0.13632608,40201.0,40200.0,0.37847806]
[1610153180261,0.089,40216.0,40200.0,0.37847806]
[1610153180462,0.4764,40240.0,40200.0,0.37847806]
[1610153180762,0.4764,40240.0,40201.0,0.13632608]
[1610153181662,0.1569,40240.0,40201.0,0.13632608]
[1610153182864,0.13632608,40202.0,40201.0,0.13632608]
[1610153183166,0.13632608,40202.0,40200.0,0.37847806]
[1610153191976,0.43506288,40202.0,40200.0,0.37847806]
[1610153193075,0.43506288,40202.0,40201.0,0.13632608]
[1610153193379,0.43506288,40202.0,40201.0,0.25439608]
[1610153193575,0.43506288,40202.0,40201.0,0.11807]
[1610153194475,0.43506288,40202.0,40200.0,0.37847806]
[1610153197985,0.95756288,40202.0,40200.0,0.37847806]
[1610153211315,0.43506288,40202.0,40200.0,0.37847806]
[1610153211708,4.05196288,40202.0,40200.0,0.37847806]
[1610153213912,1.93506288,40202.0,40200.0,0.37847806]
[1610153214518,1.23514961,40201.0,40200.0,0.37695592]
[1610153214712,3.31474297,40201.0,40200.0,0.37695592]
[1610153214912,3.31474297,40201.0,40140.0,0.07924]
[1610153215114,2.8711,40180.0,40140.0,0.07924]
[1610153215314,2.95106,40180.0,40140.0,0.07924]
[1610153215715,0.2988,40179.0,40140.0,0.07924]
[1610153216916,0.13632608,40141.0,40140.0,0.07924]
[1610153218919,3.5796,40147.0,40140.0,0.07924]
[1610153219118,3.5796,40147.0,40130.0,0.09436]
[1610153220218,3.5796,40147.0,40088.0,0.2978]
[1610153220219,0.13632608,40131.0,40089.0,2.40784741]
[1610153220619,3.5883,40123.0,40089.0,2.40784741]
[1610153220920,3.5883,40123.0,40081.0,2.40840524]
[1610153221120,3.5883,40123.0,40076.0,2.40460833]
[1610153221522,3.5883,40123.0,40073.0,2.40195861]
[1610153221920,3.5883,40123.0,40072.0,2.40193816]
[1610153222421,0.13632608,40101.0,40073.0,0.13632608]
[1610153224924,0.13632608,40101.0,40073.0,0.71592608]
[1610153225525,0.09386,40127.0,40073.0,2.21592608]
[1610153225723,3.647,40131.0,40100.0,0.34109]
[1610153226226,3.647,40131.0,40102.0,0.13632608]
[1610153226925,3.647,40131.0,40100.0,0.34109]
[1610153228333,0.13632608,40101.0,40100.0,0.25]
[1610153229830,0.23929608,40101.0,40100.0,0.25]
[1610153234238,3.7778,40086.0,40025.0,0.13632608]
[1610153234441,0.13632608,40026.0,40025.0,0.13632608]
[1610153235042,0.2919,40058.0,40025.0,0.13632608]
[1610153235242,0.2919,40058.0,40025.0,0.21718608]
[1610153236145,4.2817,40058.0,40025.0,0.21718608]
[1610153236342,0.13632608,40026.0,40025.0,0.08086]
[1610153237344,0.13632608,40026.0,39986.0,0.2799]
[1610153238348,3.8389,40028.0,40008.0,0.13632608]
[1610153238547,3.8389,40028.0,40008.0,0.23735608]
[1610153239150,0.11283,40042.0,40008.0,0.23735608]
[1610153239850,0.12485,40059.0,40008.0,0.23735608]
[1610153240050,3.0173,40077.0,40008.0,0.23735608]
[1610153240251,0.2725,40076.0,40008.0,0.23735608]
[1610153240551,0.0932,40076.0,40049.0,0.13632608]
[1610153240751,0.0932,40076.0,40049.0,0.25176608]
[1610153241354,3.0705,40112.0,40049.0,0.25176608]
[1610153241553,0.2711,40125.0,40049.0,0.25176608]
[1610153241755,0.2711,40125.0,40050.0,3.1365]
[1610153242354,0.2711,40125.0,40079.0,0.13632608]
[1610153242554,0.4755,40122.0,40079.0,0.1274]
[1610153242755,0.56147,40122.0,40079.0,0.1274]
[1610153243155,0.08597,40122.0,40079.0,0.1274]
[1610153244457,0.08597,40122.0,40114.0,0.13632608]
[1610153244657,0.2879,40147.0,40114.0,0.13632608]
[1610153244856,0.2879,40147.0,40114.0,0.12039]
[1610153245256,0.3195,40167.0,40114.0,0.12039]
[1610153245460,0.00646406,40182.0,40114.0,0.12039]
[1610153245657,0.4305,40181.0,40114.0,0.12039]
[1610153246457,0.13632608,40115.0,40114.0,0.12039]
[1610153248058,0.13632608,40115.0,40102.0,0.1201]
[1610153248360,0.13632608,40103.0,40102.0,0.1201]
[1610153249661,0.13632608,40103.0,40065.0,3.4836]
[1610153250462,3.6245,40118.0,40069.0,0.13632608]
[1610153250759,3.6245,40118.0,40069.0,0.25814608]
[1610153252463,0.13632608,40097.0,40085.0,0.13632608]
[1610153253461,0.1063,40130.0,40085.0,0.13632608]